bitfinex-derivatives/quotes_BTCF0:USTF0_20260214
["timestamp","ask_amount","ask_price","bid_price","bid_amount"]
[1771048269682,0.019531,68855.0,68850.0,0.047092]
[1771048269868,0.014531,68854.0,68850.0,0.047092]
[1771048270580,0.014532,68852.0,68850.0,0.03256]
[1771048271374,0.014532,68852.0,68850.0,0.05156]
[1771048273276,0.014532,68852.0,68850.0,0.01456]
[1771048273970,0.01182878,68852.0,68850.0,0.01456]
[1771048274475,0.01582878,68852.0,68850.0,0.02956]
[1771048276775,0.02909,68859.0,68851.0,0.014531]
[1771048276980,0.01453,68857.0,68852.0,0.014531]
[1771048277282,0.014531,68856.0,68852.0,0.014531]
[1771048277478,0.01453,68857.0,68852.0,0.014531]
[1771048277776,0.01453,68857.0,68851.0,0.014532]
[1771048279180,0.01453,68857.0,68851.0,0.029063]
[1771048279477,0.01856,68859.0,68851.0,0.075063]
[1771048279676,0.03819021,68876.0,68860.0,0.01453]
[1771048279879,0.07444,68875.0,68859.0,0.01453]
[1771048280069,0.03939,68875.0,68859.0,0.01453]
[1771048280269,0.07758021,68875.0,68859.0,0.01453]
[1771048280475,0.15988,68874.0,68859.0,0.01453]
[1771048280974,0.15988,68874.0,68861.0,0.014529]
[1771048281178,0.15988,68874.0,68860.0,0.01453]
[1771048281880,0.15988,68874.0,68860.0,0.02953]
[1771048282272,0.15988,68874.0,68860.0,0.01453]
[1771048282576,0.15988,68874.0,68860.0,0.03453]
[1771048282771,0.15988,68874.0,68861.0,0.014529]
[1771048282971,0.15988,68874.0,68863.0,0.014529]
[1771048283172,0.15988,68874.0,68864.0,0.014529]
[1771048283581,0.15988,68874.0,68865.0,0.014529]
[1771048283781,0.15988,68874.0,68864.0,0.014529]
[1771048283969,0.16088,68874.0,68864.0,0.014529]
[1771048284174,0.16088,68874.0,68863.0,0.014529]
[1771048285175,0.16088,68874.0,68864.0,0.014529]
[1771048285487,0.15988,68874.0,68864.0,0.014529]
[1771048285984,0.01115921,68888.0,68869.0,0.05666954]
[1771048286275,0.15988,68887.0,68869.0,0.08575754]
[1771048286582,0.17103921,68887.0,68869.0,0.08575754]
[1771048287576,0.01058071,68886.0,68869.0,0.08575754]
[1771048288182,0.01058071,68886.0,68869.0,0.09075754]
[1771048288683,0.01058071,68886.0,68869.0,0.09375754]
[1771048289084,0.01058071,68886.0,68869.0,0.07922954]
[1771048289679,0.01058071,68886.0,68869.0,0.04056]
[1771048289878,0.01158071,68886.0,68869.0,0.04056]
[1771048291184,0.01158071,68886.0,68869.0,0.01456]
[1771048291379,0.01158071,68886.0,68869.0,0.03956]
[1771048291586,0.01058071,68886.0,68869.0,0.03956]
[1771048291787,0.01058071,68886.0,68869.0,0.01456]
[1771048291989,0.01058071,68886.0,68869.0,0.04056]
[1771048292286,0.01158071,68886.0,68869.0,0.04056]
[1771048292586,0.01258071,68886.0,68869.0,0.04056]
[1771048293089,0.01258071,68886.0,68869.0,0.04256]
[1771048293584,0.002,68886.0,68870.0,0.05879749]
[1771048293881,0.002,68886.0,68870.0,0.07332449]
[1771048294479,0.15988,68887.0,68870.0,0.07332449]
[1771048294683,0.001,68886.0,68870.0,0.07332449]
[1771048295585,0.001,68886.0,68870.0,0.10332449]
[1771048295786,0.001,68886.0,68870.0,0.13232449]
[1771048296489,0.001,68886.0,68870.0,0.08979749]
[1771048297888,0.001,68886.0,68870.0,0.05879749]
[1771048298090,0.001,68886.0,68870.0,0.09079749]
[1771048298584,0.15988,68887.0,68870.0,0.08979749]
[1771048298788,0.001,68886.0,68870.0,0.08979749]
[1771048299290,0.15988,68887.0,68870.0,0.08979749]
[1771048299490,0.001,68886.0,68870.0,0.08979749]
[1771048300193,0.001,68886.0,68870.0,0.12579749]
[1771048300892,0.16088,68887.0,68870.0,0.12579749]
[1771048301189,0.16088,68887.0,68870.0,0.05879749]
[1771048301390,0.16088,68887.0,68870.0,0.09279749]
[1771048301591,0.15988,68887.0,68870.0,0.09279749]
[1771048301795,0.001,68886.0,68870.0,0.09279749]
[1771048302293,0.001,68886.0,68870.0,0.05879749]
[1771048302486,0.001,68886.0,68870.0,0.09379749]
[1771048302687,0.16088,68887.0,68870.0,0.09379749]
[1771048302887,0.16088,68887.0,68870.0,0.09479749]
[1771048304292,0.001,68886.0,68870.0,0.09479749]
[1771048304492,0.001,68886.0,68870.0,0.09379749]
[1771048305095,0.16088,68887.0,68870.0,0.07679749]
[1771048305793,0.15988,68887.0,68870.0,0.07679749]
[1771048306281,0.14532,68886.0,68870.0,0.07679749]
[1771048306790,0.14632,68886.0,68870.0,0.07679749]
[1771048307795,0.14532,68886.0,68870.0,0.07679749]
[1771048308088,0.14532,68886.0,68870.0,0.05879749]
[1771048308282,0.14532,68886.0,68870.0,0.07079749]
[1771048308795,0.14632,68886.0,68870.0,0.05879749]
[1771048309486,0.14632,68886.0,68870.0,0.07079749]
[1771048311195,0.14532,68885.0,68870.0,0.07079749]
[1771048311381,0.01456,68884.0,68870.0,0.07079749]
[1771048312197,0.01456,68884.0,68870.0,0.05879749]
[1771048312495,0.01456,68884.0,68870.0,0.06179749]
[1771048312896,0.01456,68884.0,68870.0,0.05879749]
[1771048313586,0.01456,68884.0,68870.0,0.06179749]
[1771048314595,0.01556,68884.0,68870.0,0.05879749]
[1771048315393,0.01456,68884.0,68870.0,0.05879749]
[1771048315796,0.14532,68883.0,68870.0,0.05879749]
[1771048320996,0.14532,68883.0,68870.0,0.05979749]
[1771048321800,0.14532,68883.0,68870.0,0.05879749]
[1771048333408,0.14532,68883.0,68872.0,0.06122613]
[1771048333602,0.14772378,68910.0,68874.0,0.06122613]
[1771048333909,0.15988,68894.0,68874.0,0.06122613]
[1771048336105,0.16088,68894.0,68874.0,0.06122613]
[1771048336802,0.16088,68894.0,68869.0,0.029088]
[1771048337107,0.16088,68894.0,68870.0,0.06146024]
[1771048337803,0.14836022,68896.0,68870.0,0.06146024]
[1771048338015,0.44100276,68894.0,68870.0,0.06146024]
[1771048338212,0.15988,68894.0,68870.0,0.06146024]
[1771048338709,0.16088,68894.0,68870.0,0.06146024]
[1771048340306,0.01456,68893.0,68870.0,0.06146024]
[1771048340511,0.15988,68893.0,68870.0,0.07598824]
[1771048341508,0.15988,68893.0,68872.0,0.0617378]
[1771048343014,0.16088,68893.0,68872.0,0.0617378]
[1771048343515,0.16088,68893.0,68872.0,0.0782648]
[1771048344516,0.16088,68893.0,68872.0,0.0802648]
[1771048344718,0.16088,68893.0,68873.0,0.014527]
[1771048344918,0.16088,68893.0,68873.0,0.07635482]
[1771048345317,0.15988,68893.0,68873.0,0.07635482]
[1771048345619,0.16088,68893.0,68873.0,0.07635482]
[1771048346010,0.16088,68893.0,68873.0,0.08035482]
[1771048346518,0.16088,68893.0,68873.0,0.07635482]
[1771048346812,0.16088,68893.0,68873.0,0.004]
[1771048347005,0.15988,68893.0,68862.0,0.014529]
[1771048347212,0.27683722,68892.0,68873.0,0.004]
[1771048347420,0.27683722,68891.0,68857.0,0.0764039]
[1771048347612,0.27683722,68891.0,68854.0,0.14528]
[1771048347613,0.439121,68890.0,68854.0,0.14528]
[1771048347809,0.27683722,68889.0,68854.0,0.15984]
[1771048348004,0.16228378,68890.0,68854.0,0.15984]
[1771048348005,0.27683722,68888.0,68854.0,0.15984]
[1771048348209,0.29139722,68887.0,68854.0,0.15984]
[1771048348409,0.29139722,68886.0,68854.0,0.15984]
[1771048348609,0.43667722,68885.0,68854.0,0.15984]
[1771048348813,0.27683722,68884.0,68854.0,0.15984]
[1771048349014,0.27683722,68883.0,68854.0,0.15984]
[1771048349212,0.29139722,68882.0,68854.0,0.14528]
[1771048349518,0.01456,68882.0,68854.0,0.14528]
[1771048350410,0.01556,68882.0,68854.0,0.14528]
[1771048352118,0.01556,68882.0,68858.0,0.01453]
[1771048352620,0.01556,68882.0,68856.0,0.07857126]
[1771048352917,0.01556,68882.0,68858.0,0.06404026]
[1771048353213,0.001,68882.0,68858.0,0.06404026]
[1771048353416,0.15988,68881.0,68858.0,0.06404026]
[1771048355917,0.16088,68881.0,68858.0,0.06404026]
[1771048356915,0.15988,68881.0,68858.0,0.06404026]
[1771048357727,0.16088,68881.0,68858.0,0.06404026]
[1771048362324,0.16088,68881.0,68854.0,0.06469007]
[1771048364027,0.15988,68881.0,68854.0,0.06469007]
[1771048364227,0.16088,68881.0,68854.0,0.06469007]
[1771048365527,0.15988,68881.0,68854.0,0.06469007]
[1771048365731,0.16088,68881.0,68854.0,0.06469007]
[1771048367329,0.16088,68881.0,68854.0,0.07922107]
[1771048371927,0.14772378,68880.0,68847.0,0.14532]
[1771048372128,0.14772378,68880.0,68826.0,1.34369343]
[1771048372129,0.27173408,68879.0,68843.0,0.029093]
[1771048372333,0.27173408,68878.0,68843.0,0.07973827]
[1771048372632,0.14772378,68880.0,68843.0,0.07973827]
[1771048372633,0.28629408,68877.0,68843.0,0.07973827]
[1771048372833,0.27173408,68876.0,68845.0,0.06525724]
[1771048373034,0.27173408,68875.0,68845.0,0.06525724]
[1771048373235,0.27173408,68874.0,68845.0,0.06525724]
[1771048373430,0.14772378,68880.0,68845.0,0.06525724]
[1771048373431,0.43161408,68873.0,68845.0,0.06525724]
[1771048373632,0.014528,68871.0,68847.0,0.07978457]
[1771048374237,0.014531,68854.0,68847.0,0.06525257]
[1771048374432,0.014528,68871.0,68847.0,0.06525257]
[1771048374633,0.15988,68870.0,68847.0,0.06525257]
[1771048376434,0.15988,68870.0,68847.0,0.06625257]
[1771048376936,0.15988,68870.0,68847.0,0.06525257]
[1771048377143,0.15988,68870.0,68847.0,0.06625257]
[1771048377531,0.15988,68870.0,68847.0,0.06525257]
[1771048377730,0.15988,68870.0,68847.0,0.06625257]
[1771048381140,0.30760378,68870.0,68839.0,0.0647174]
[1771048381336,0.30760378,68870.0,68839.0,0.0792774]
[1771048381536,0.27175873,68869.0,68839.0,0.0792774]
[1771048381837,0.27175873,68868.0,68839.0,0.0792774]
[1771048382039,0.01456,68867.0,68839.0,0.0792774]
[1771048382936,0.014533,68846.0,68839.0,0.0792774]
[1771048385029,0.029066,68846.0,68839.0,0.0792774]
[1771048385234,0.014533,68845.0,68839.0,0.0792774]
[1771048385540,0.014533,68844.0,68839.0,0.0792774]
[1771048385841,0.014533,68844.0,68840.0,0.06498342]
[1771048386038,0.029066,68844.0,68840.0,0.06498342]
[1771048386235,0.014533,68843.0,68840.0,0.06498342]
[1771048387038,0.014534,68842.0,68840.0,0.06498342]
[1771048388743,0.014534,68842.0,68840.0,0.07398342]
[1771048389944,0.014534,68842.0,68840.0,0.07498342]
[1771048390143,0.014533,68846.0,68840.0,0.07498342]
[1771048390344,0.01456,68847.0,68836.0,0.05268842]
[1771048390545,0.01456,68847.0,68836.0,0.01456]
[1771048391240,0.01456,68847.0,68833.0,0.19804842]
[1771048391435,0.01456,68847.0,68836.0,0.006]
[1771048391640,0.01456,68847.0,68833.0,0.14536]
[1771048392040,0.01456,68847.0,68830.0,0.05268842]
[1771048392041,0.01456,68847.0,68836.0,0.005]
[1771048392244,0.0592246,68847.0,68830.0,0.01456]
[1771048392545,0.0592246,68847.0,68836.0,0.002382]
[1771048392746,0.0592246,68847.0,68836.0,0.000764]
[1771048392946,0.0592246,68847.0,68827.0,0.05268842]
[1771048393136,0.0592246,68847.0,68836.0,0.002]
[1771048393449,0.0592246,68847.0,68828.0,0.05268842]
[1771048393638,0.0491289,68846.0,68828.0,0.05268842]
[1771048397444,0.01456,68845.0,68838.0,0.05268842]
[1771048397645,0.14536,68845.0,68838.0,0.05268842]
[1771048397845,0.01456,68844.0,68838.0,0.05268842]
[1771048400044,0.05136424,68843.0,68823.0,0.05268842]
[1771048400251,0.05136424,68843.0,68825.0,0.05268842]
[1771048400647,0.01456,68844.0,68825.0,0.05268842]
[1771048400846,0.05142632,68843.0,68821.0,0.05268842]
[1771048401051,0.05142632,68843.0,68823.0,0.01456]
[1771048401252,0.05142632,68843.0,68823.0,0.06724842]
[1771048401851,0.014536,68830.0,68823.0,0.06724842]
[1771048402052,0.014536,68829.0,68823.0,0.06724842]
[1771048402250,0.014536,68830.0,68823.0,0.06724842]
[1771048402251,0.014536,68828.0,68823.0,0.06724842]
[1771048402751,0.014537,68827.0,68823.0,0.06724842]
[1771048403349,0.014537,68826.0,68823.0,0.06724842]
[1771048403745,0.014536,68828.0,68823.0,0.06724842]
[1771048403949,0.01456,68831.0,68828.0,0.05268842]
[1771048407256,0.01456,68832.0,68828.0,0.05268842]
[1771048413756,0.05382342,68852.0,68831.0,0.05435117]
[1771048413956,0.15996,68851.0,68832.0,0.05435117]
[1771048414549,0.15996,68851.0,68832.0,0.06888717]
[1771048414756,0.15996,68851.0,68832.0,0.05435117]
[1771048417762,0.15996,68851.0,68833.0,0.05435117]
[1771048418064,0.05382342,68852.0,68833.0,0.05435117]
[1771048418260,0.01456,68850.0,68835.0,0.05435117]
[1771048418464,0.15996,68849.0,68836.0,0.05435117]
[1771048427070,0.15996,68849.0,68833.0,0.01456]
[1771048427368,0.05112743,68848.0,68833.0,0.01456]
[1771048428470,0.05112743,68848.0,68830.0,0.01456]
[1771048429369,0.05112743,68848.0,68830.0,0.06724857]
[1771048429874,0.05112743,68848.0,68831.0,0.014536]
[1771048430571,0.05112743,68848.0,68831.0,0.06722457]
[1771048430977,0.05112743,68848.0,68831.0,0.05268857]
[1771048431374,0.05112743,68848.0,68831.0,0.06722457]
[1771048431673,0.15996,68849.0,68831.0,0.06722457]
[1771048433276,0.15996,68849.0,68832.0,0.05268857]
[1771048433973,0.21108743,68849.0,68830.0,0.01456]
[1771048434169,0.21108743,68849.0,68830.0,0.06724857]
[1771048434370,0.21108743,68849.0,68831.0,0.001]
[1771048434679,0.05112743,68848.0,68831.0,0.001]
[1771048434874,0.05112743,68848.0,68832.0,0.001]
[1771048435077,0.14536,68847.0,68832.0,0.001]
[1771048435276,0.06568743,68846.0,68832.0,0.001]
[1771048436178,0.06568743,68846.0,68830.0,0.01456]
[1771048440577,0.06568743,68846.0,68832.0,0.014535]
[1771048441077,0.01456,68846.0,68831.0,0.014536]
[1771048441379,0.01456,68846.0,68831.0,0.06707581]
[1771048442480,0.01556,68846.0,68831.0,0.06707581]
[1771048443087,0.01456,68846.0,68831.0,0.06707581]
[1771048443273,0.01456,68846.0,68831.0,0.06807581]
[1771048444876,0.01456,68846.0,68831.0,0.001]
[1771048445078,0.01456,68846.0,68831.0,0.015536]
[1771048446884,0.01456,68846.0,68831.0,0.001]
[1771048448578,0.01456,68846.0,68830.0,0.014536]
[1771048449180,0.01456,68846.0,68830.0,0.06707581]
[1771048449485,0.05121001,68848.0,68830.0,0.014536]
[1771048449781,0.15992,68847.0,68830.0,0.017536]
[1771048451684,0.15992,68847.0,68832.0,0.014535]
[1771048452884,0.15992,68847.0,68832.0,0.016535]
[1771048453286,0.15992,68847.0,68832.0,0.014535]
[1771048453486,0.15992,68847.0,68832.0,0.015535]
[1771048454389,0.15992,68847.0,68832.0,0.001]
[1771048454788,0.15992,68847.0,68831.0,0.014536]
[1771048454989,0.15992,68847.0,68832.0,0.001]
[1771048455383,0.15992,68847.0,68833.0,0.06707481]
[1771048455584,0.15992,68847.0,68833.0,0.05253981]
[1771048455882,0.15992,68847.0,68832.0,0.001]
[1771048456078,0.14536,68846.0,68832.0,0.001]
[1771048456488,0.14536,68846.0,68831.0,0.014536]
[1771048456685,0.14536,68846.0,68833.0,0.001]
[1771048457590,0.05121001,68849.0,68833.0,0.015535]
[1771048457793,0.05121001,68853.0,68833.0,0.05353981]
[1771048458100,0.15992,68852.0,68834.0,0.05253981]
[1771048458285,0.05121001,68851.0,68834.0,0.05253981]
[1771048458590,0.05121001,68851.0,68833.0,0.06707481]
[1771048459392,0.05121001,68851.0,68833.0,0.06807481]
[1771048461191,0.05121001,68851.0,68833.0,0.05353981]
[1771048461493,0.05121001,68851.0,68833.0,0.05253981]
[1771048462287,0.05121001,68851.0,68834.0,0.014535]
[1771048462492,0.15992,68850.0,68838.0,0.014534]
[1771048462789,0.05121001,68857.0,68838.0,0.06707381]
[1771048463092,0.05121001,68855.0,68838.0,0.06707381]
[1771048463294,0.05121001,68855.0,68838.0,0.05253981]
[1771048464098,0.05121001,68855.0,68837.0,0.014535]
[1771048464393,0.05121001,68855.0,68838.0,0.002]
[1771048464882,0.05121001,68855.0,68837.0,0.014535]
[1771048465287,0.05121001,68855.0,68836.0,0.014535]
[1771048467500,0.05121001,68855.0,68837.0,0.014535]
[1771048467702,0.05121001,68855.0,68837.0,0.02907]
[1771048468001,0.05121001,68855.0,68837.0,0.014535]
[1771048468203,0.15992,68854.0,68837.0,0.014535]
[1771048468601,0.21113001,68854.0,68837.0,0.014535]
[1771048470108,0.05121001,68853.0,68836.0,0.014535]
[1771048472210,0.14219549,68858.0,68808.0,0.00018648]
[1771048472211,0.04740482,68845.0,68808.0,0.00018648]
[1771048472406,0.04740482,68843.0,68810.0,0.0489664]
[1771048472603,0.04740482,68841.0,68810.0,0.0489664]
[1771048472907,0.04740482,68839.0,68810.0,0.0489664]
[1771048473115,0.04740482,68837.0,68810.0,0.0489664]
[1771048473312,0.04740482,68835.0,68810.0,0.0489664]
[1771048473519,0.014539,68815.0,68810.0,0.0489664]
[1771048473812,0.014539,68815.0,68808.0,0.01474648]
[1771048473813,0.01454,68812.0,68808.0,0.01474648]
[1771048474317,0.01468749,68811.0,68808.0,0.01456]
[1771048474521,0.00014749,68811.0,68808.0,0.01456]
[1771048475017,0.01454,68814.0,68808.0,0.01456]
[1771048475218,0.01454,68813.0,68808.0,0.01456]
[1771048475717,0.01454,68812.0,68810.0,0.005]
[1771048475915,6.603e-05,68811.0,68810.0,0.005]
[1771048476419,6.603e-05,68811.0,68808.0,0.02056]
[1771048476817,6.603e-05,68811.0,68808.0,0.01456]
[1771048477018,0.01454,68812.0,68810.0,0.006]
[1771048477217,0.01454,68811.0,68803.0,0.0489664]
[1771048477513,0.01454,68811.0,68808.0,0.006]
[1771048477718,0.01454,68811.0,68809.0,0.01456]
[1771048478311,0.01454,68811.0,68810.0,0.006]
[1771048478515,0.01454,68811.0,68809.0,0.01456]
[1771048479822,0.03908,68811.0,68809.0,0.01456]
[1771048480123,0.03908,68811.0,68810.0,0.01456]
[1771048480518,0.01454,68810.0,68805.0,0.04726481]
[1771048480819,0.01454,68810.0,68806.0,0.01456]
[1771048482023,0.02454,68811.0,68805.0,0.04726481]
[1771048482215,0.014541,68808.0,68805.0,0.04726481]
[1771048482416,0.014541,68809.0,68805.0,0.04726481]
[1771048484422,0.026541,68809.0,68805.0,0.04726481]
[1771048484814,0.014541,68808.0,68805.0,0.04726481]
[1771048486021,0.028541,68808.0,68805.0,0.04726481]
[1771048487411,0.014541,68807.0,68805.0,0.04726481]
[1771048489523,0.027541,68807.0,68805.0,0.04726481]
[1771048491022,0.013,68807.0,68799.0,0.01456]
[1771048491216,0.013,68807.0,68802.0,0.05144924]
[1771048491417,0.01454,68810.0,68802.0,0.05144924]
[1771048491615,0.014541,68808.0,68802.0,0.05144924]
[1771048491821,0.014542,68804.0,68803.0,0.01456]
[1771048492022,0.014541,68805.0,68803.0,0.01456]
[1771048492526,0.014542,68804.0,68803.0,0.01456]
[1771048493122,0.031542,68804.0,68803.0,0.01456]
[1771048493522,0.017,68804.0,68803.0,0.06182481]
[1771048494323,0.014541,68805.0,68803.0,0.06182481]
[1771048494525,0.014541,68807.0,68803.0,0.06182481]
[1771048494920,0.01456,68813.0,68803.0,0.06182481]
[1771048495521,0.01456,68813.0,68803.0,0.06682481]
[1771048495930,0.01456,68813.0,68803.0,0.06182481]
[1771048496128,0.01456,68813.0,68803.0,0.06282481]
[1771048496729,0.01456,68816.0,68807.0,0.04726481]
[1771048496925,0.01456,68816.0,68807.0,0.06182481]
[1771048498625,0.01456,68816.0,68808.0,0.04726481]
[1771048499624,0.04736666,68830.0,68808.0,0.04726481]
[1771048499930,0.16,68829.0,68808.0,0.04726481]
[1771048500132,0.20736666,68829.0,68808.0,0.05626481]
[1771048500427,0.16,68829.0,68815.0,0.04726481]
[1771048500630,0.16,68829.0,68812.0,0.01454]
[1771048500631,0.16,68829.0,68816.0,0.06182481]
[1771048502428,0.166,68829.0,68816.0,0.06182481]
[1771048503333,0.04850914,68828.0,68806.0,0.014541]
[1771048503528,0.04850914,68828.0,68807.0,0.16]
[1771048503729,0.04850914,68828.0,68808.0,0.14544]
[1771048505738,0.04950914,68828.0,68808.0,0.14544]
[1771048506739,0.04850914,68828.0,68808.0,0.14544]
[1771048507826,0.04850914,68828.0,68809.0,0.01456]
[1771048509640,0.04850914,68828.0,68809.0,0.03456]
[1771048511340,0.04850914,68828.0,68809.0,0.01456]
[1771048511542,0.04850914,68828.0,68809.0,0.02656]
[1771048511736,0.04950914,68828.0,68809.0,0.02656]
[1771048512039,0.04950914,68828.0,68809.0,0.01456]
[1771048512241,0.04950914,68828.0,68809.0,0.02656]
[1771048512644,0.04950914,68828.0,68809.0,0.01456]
[1771048512943,0.04850914,68826.0,68809.0,0.03456]
[1771048513136,0.04850914,68824.0,68809.0,0.03456]
[1771048514235,0.04850914,68824.0,68809.0,0.01456]
[1771048515242,0.04850914,68824.0,68809.0,0.03456]
[1771048516445,0.04850914,68824.0,68809.0,0.05656]
[1771048517243,0.04850914,68824.0,68809.0,0.042]
[1771048517544,0.04850914,68824.0,68806.0,0.01456]
[1771048518447,0.04850914,68824.0,68809.0,0.044]
[1771048519649,0.04850914,68824.0,68806.0,0.03256]
[1771048520748,0.04850914,68824.0,68806.0,0.01456]
[1771048521248,0.04850914,68824.0,68798.0,0.05035903]
[1771048521449,0.04850914,68824.0,68809.0,0.018]
[1771048522450,0.04850914,68824.0,68793.0,0.05035903]
[1771048522637,0.04850914,68824.0,68794.0,0.16]
[1771048522948,0.04850914,68822.0,68795.0,0.01456]
[1771048523143,0.04850914,68820.0,68794.0,0.06491903]
[1771048523343,0.04850914,68818.0,68794.0,0.06491903]
[1771048523543,0.04850914,68816.0,68794.0,0.06491903]
[1771048524642,0.04850914,68816.0,68776.0,0.00011897]
[1771048524643,0.04850914,68802.0,68772.0,0.14544]
[1771048524851,0.014545,68789.0,68781.0,0.05035903]
[1771048525048,0.014545,68789.0,68782.0,0.01456]
[1771048525238,0.01456,68793.0,68783.0,0.05035903]
[1771048525444,0.014542,68803.0,68783.0,0.05035903]
[1771048525445,0.014543,68796.0,68789.0,0.05035903]
[1771048525645,0.01456,68799.0,68790.0,0.05035903]
[1771048525851,0.1454,68841.0,68789.0,0.01456]
[1771048525852,0.04850914,68817.0,68794.0,0.05035903]
[1771048526144,0.16,68815.0,68798.0,0.06490203]
[1771048526347,0.16,68815.0,68799.0,0.05035903]
[1771048526549,0.014541,68809.0,68800.0,0.014542]
[1771048526747,0.0146,68810.0,68804.0,0.05035903]
[1771048526948,0.02914,68810.0,68804.0,0.05035903]
[1771048527352,0.0146,68810.0,68804.0,0.05035903]
[1771048527751,0.0146,68810.0,68801.0,0.014542]
[1771048527953,0.0146,68810.0,68801.0,0.05035903]
[1771048528253,0.0236,68810.0,68799.0,0.043645]
[1771048528656,0.0236,68810.0,68800.0,0.014542]
[1771048528848,0.0236,68810.0,68801.0,0.05035903]
[1771048529858,0.0236,68810.0,68801.0,0.06495903]
[1771048530251,0.0246,68810.0,68801.0,0.06495903]
[1771048530457,0.0246,68810.0,68801.0,0.07950103]
[1771048530757,0.0146,68810.0,68801.0,0.07950103]
[1771048530958,0.0276,68810.0,68801.0,0.07950103]
[1771048531953,0.0146,68810.0,68801.0,0.07950103]
[1771048532160,0.0276,68810.0,68801.0,0.07950103]
[1771048532660,0.0276,68810.0,68801.0,0.06495903]
[1771048532856,0.0276,68810.0,68801.0,0.07950103]
[1771048533062,0.0276,68810.0,68802.0,0.0495504]
[1771048533757,0.0296,68810.0,68803.0,0.0640924]
[1771048533958,0.02142097,68812.0,68805.0,0.0495504]
[1771048534464,0.14544,68815.0,68806.0,0.0495504]
[1771048534664,0.16,68815.0,68806.0,0.0495504]
[1771048534863,0.015,68810.0,68806.0,0.0495504]
[1771048535452,0.16,68815.0,68806.0,0.0495504]
[1771048535659,0.16,68815.0,68805.0,0.01456]
[1771048536665,0.16,68815.0,68806.0,0.003]
[1771048537167,0.16,68815.0,68805.0,0.01756]
[1771048537468,0.16,68815.0,68805.0,0.003]
[1771048537665,0.16,68815.0,68802.0,0.01456]
[1771048538072,0.01456,68814.0,68804.0,0.0495504]
[1771048538270,0.01456,68813.0,68804.0,0.0495504]
[1771048539969,0.01456,68813.0,68802.0,0.01456]
[1771048540473,0.02056,68813.0,68802.0,0.01456]
[1771048540974,0.01456,68813.0,68802.0,0.01456]
[1771048541272,0.02056,68813.0,68802.0,0.01456]
[1771048541461,0.02056,68813.0,68797.0,0.14544]
[1771048541668,0.06895574,68813.0,68798.0,0.01456]
[1771048542064,0.06295574,68813.0,68798.0,0.01456]
[1771048542265,0.07095574,68813.0,68798.0,0.01456]
[1771048542971,0.02256,68813.0,68801.0,0.04852425]
[1771048543176,0.03156,68813.0,68801.0,0.04852425]
[1771048543578,0.01456,68813.0,68801.0,0.04852425]
[1771048543779,0.03156,68813.0,68801.0,0.04852425]
[1771048544279,0.03056,68813.0,68801.0,0.04852425]
[1771048544773,0.03056,68813.0,68798.0,0.029103]
[1771048544981,0.03056,68813.0,68798.0,0.07762725]
[1771048545179,0.03056,68813.0,68802.0,0.04852425]
[1771048545379,0.03056,68813.0,68803.0,0.04852425]
[1771048545681,0.01456,68816.0,68806.0,0.04852425]
[1771048545878,0.01456,68816.0,68806.0,0.06308425]
[1771048546069,0.01456,68816.0,68807.0,0.04852425]
[1771048546272,0.017,68813.0,68807.0,0.04852425]
[1771048546673,0.16,68820.0,68807.0,0.04852425]
[1771048547574,0.015,68813.0,68806.0,0.01456]
[1771048548080,0.04839574,68819.0,68806.0,0.01456]
[1771048549676,0.015,68813.0,68806.0,0.01456]
[1771048549982,0.01456,68814.0,68806.0,0.01456]
[1771048551183,0.01456,68814.0,68801.0,0.014542]
[1771048551384,0.01456,68814.0,68802.0,0.01456]
[1771048552276,0.01556,68814.0,68802.0,0.01456]
[1771048552686,0.01456,68814.0,68802.0,0.01456]
[1771048552884,0.01656,68814.0,68802.0,0.01456]
[1771048554288,0.01656,68814.0,68802.0,0.029102]
[1771048554783,0.01656,68814.0,68802.0,0.07762625]
[1771048555588,0.01456,68814.0,68802.0,0.08362625]
[1771048559283,0.01456,68814.0,68803.0,0.04852425]
[1771048562189,0.01456,68814.0,68803.0,0.06252425]
[1771048562489,0.01456,68814.0,68803.0,0.07552425]
[1771048563090,0.01456,68814.0,68806.0,0.014541]
[1771048563285,0.01456,68814.0,68806.0,0.029101]
[1771048564891,0.01456,68814.0,68806.0,0.049101]
[1771048565190,0.01456,68814.0,68808.0,0.04789823]
[1771048565989,0.14544,68820.0,68808.0,0.04789823]
[1771048565990,0.01456,68818.0,68808.0,0.04789823]
[1771048566795,0.01456,68818.0,68806.0,0.049101]
[1771048567594,0.01456,68818.0,68806.0,0.029101]
[1771048567895,0.01456,68818.0,68809.0,0.04789823]
[1771048569400,0.01456,68818.0,68809.0,0.05889823]
[1771048569798,0.01456,68818.0,68809.0,0.07345823]
[1771048569994,0.01456,68818.0,68810.0,0.04789823]
[1771048571388,0.01456,68818.0,68809.0,0.01556]
[1771048571593,0.01456,68818.0,68810.0,0.001]
[1771048574105,0.01456,68818.0,68809.0,0.01456]
[1771048582912,0.06391189,68818.0,68807.0,0.01456]
[1771048583713,0.01456,68818.0,68807.0,0.01456]
[1771048585014,0.01456,68823.0,68807.0,0.04789823]
[1771048585219,0.01456,68823.0,68806.0,0.01456]
[1771048585220,0.01456,68823.0,68810.0,0.04789823]
[1771048585714,0.01456,68823.0,68810.0,0.06245823]
[1771048589619,0.01456,68823.0,68810.0,0.07699823]
[1771048590318,0.01456,68823.0,68811.0,0.01454]
[1771048591510,0.01456,68823.0,68812.0,0.01454]
[1771048593712,0.01456,68823.0,68812.0,0.06491191]
[1771048595116,0.01456,68823.0,68813.0,0.01454]
[1771048595313,0.01456,68823.0,68813.0,0.06491191]
[1771048596016,0.00144,68823.0,68814.0,0.05037191]
[1771048596221,0.01456,68824.0,68816.0,0.05037191]
[1771048597313,0.00144,68824.0,68816.0,0.05037191]
[1771048602624,0.00144,68824.0,68814.0,0.01456]
[1771048605930,0.00244,68824.0,68814.0,0.01456]
[1771048606431,0.00144,68824.0,68811.0,0.04676327]
[1771048606728,0.00144,68824.0,68812.0,0.01456]
[1771048606930,0.00144,68824.0,68812.0,0.0291]
[1771048607329,0.00344,68824.0,68812.0,0.0291]